bitfinex-derivatives/quotes_SOLF0:USTF0_20250706
["timestamp","ask_amount","ask_price","bid_price","bid_amount"]
[1751820178326,5.79189272,152.32,152.22,5.79189272]
[1751820178523,56.35189272,152.34,152.24,6.5667]
[1751820179128,56.35189272,152.34,152.24,12.35859272]
[1751820179327,6.5653,152.28,152.24,12.35859272]
[1751820180229,6.5649,152.29,152.25,6.5665]
[1751820180430,56.35189272,152.34,152.24,5.79189272]
[1751820180626,50.56,152.34,152.26,5.79125477]
[1751820180831,6.5644,152.3,152.27,3.86085512]
[1751820182136,6.5648,152.29,152.27,3.86085512]
[1751820182636,6.5648,152.29,152.25,6.5664]
[1751820182637,3.86085512,152.32,152.25,3.86085512]
[1751820182841,6.5655,152.28,152.25,3.86085512]
[1751820184638,6.5655,152.28,152.23,12.12393695]
[1751820184940,6.5655,152.28,152.25,3.86085512]
[1751820186141,6.5655,152.28,152.23,12.12393695]
[1751820186338,6.5655,152.28,152.25,3.86085512]
[1751820186640,6.5655,152.28,152.25,10.42725512]
[1751820186842,6.5649,152.29,152.25,10.42725512]
[1751820187040,3.86085512,152.32,152.25,10.42725512]
[1751820187841,3.86085512,152.32,152.26,6.566]
[1751820188046,54.42085512,152.34,152.26,6.566]
[1751820188341,54.42085512,152.34,152.27,3.86085512]
[1751820189039,6.5649,152.29,152.27,3.86085512]
[1751820189341,54.42085512,152.34,152.25,6.5664]
[1751820189342,54.42085512,152.34,152.25,3.86085512]
[1751820189535,3.86085512,152.32,152.23,12.12393695]
[1751820189743,3.86085512,152.32,152.24,3.86085512]
[1751820190044,6.5659,152.27,152.24,3.86085512]
[1751820190538,49.26,152.32,152.26,3.86085512]
[1751820190738,3.86085512,152.33,152.26,3.86085512]
[1751820190948,3.86085512,152.33,152.24,12.12393695]
[1751820191238,6.5656,152.28,152.25,3.86085512]
[1751820192241,6.5656,152.28,152.25,6.5664]
[1751820192447,6.5656,152.28,152.25,10.42725512]
[1751820192649,3.86085512,152.33,152.23,12.12393695]
[1751820192844,3.86085512,152.33,152.24,10.42755512]
[1751820193042,49.26,152.34,152.24,3.86085512]
[1751820193239,3.86300466,152.3,152.23,12.12393695]
[1751820193444,3.86300466,152.3,152.13,67.62670701]
[1751820193445,3.86300466,152.24,152.13,67.62670701]
[1751820193648,3.86690896,152.22,152.13,49.26]
[1751820193945,3.86690896,152.2,152.1,18.36670701]
[1751820194144,3.86690896,152.2,152.12,3.86690896]
[1751820194446,6.5703,152.17,152.12,10.43900896]
[1751820194844,55.08314528,152.19,152.1,12.37614528]
[1751820195243,12.14844212,152.18,152.1,12.37614528]
[1751820195436,6.5712,152.15,152.11,6.5725]
[1751820196347,55.08314528,152.19,152.1,12.37604528]
[1751820196547,8.90537955,152.18,152.1,6.5729]
[1751820196743,6.5712,152.15,152.1,12.37604528]
[1751820197143,16.89341147,152.18,152.11,6.5726]
[1751820197344,4.22592347,152.17,152.11,6.5726]
[1751820197543,55.08314528,152.19,152.11,6.5726]
[1751820197747,8.8173886,152.18,152.11,6.5726]
[1751820198046,55.08314528,152.19,152.11,6.5726]
[1751820198245,4.22232606,152.18,152.11,6.5726]
[1751820198546,55.08314528,152.19,152.11,6.5726]
[1751820198847,2.3427,152.18,152.1,12.37604528]
[1751820199048,5.80314528,152.17,152.08,5.80314528]
[1751820199752,2.3333,152.16,152.08,5.80314528]
[1751820200444,2.3333,152.16,152.04,2.1561]
[1751820200751,6.5724,152.12,152.07,12.37714528]
[1751820201137,5.80314528,152.15,152.07,5.80314528]
[1751820201342,6.5723,152.12,152.08,6.5735]
[1751820201544,5.80314528,152.15,152.07,5.80314528]
[1751820202146,2.3333,152.16,152.07,5.80314528]
[1751820202343,2.3333,152.16,152.11,5.80314528]
[1751820202542,2.3333,152.16,152.09,5.80314528]
[1751820202741,2.3333,152.16,152.08,6.5736]
[1751820203043,5.80314528,152.15,152.05,55.10314528]
[1751820203245,8.00774528,152.15,152.05,55.10314528]
[1751820203844,5.80314528,152.13,152.05,49.3]
[1751820204240,6.5733,152.1,152.05,55.8751]
[1751820204639,55.10314528,152.14,152.05,55.8751]
[1751820204848,49.3,152.14,152.05,61.67824528]
[1751820205048,55.10314528,152.14,152.05,61.67824528]
[1751820205354,6.5733,152.1,152.05,61.67824528]
[1751820205546,6.5733,152.1,152.06,6.5746]
[1751820205950,49.3,152.14,152.07,5.80314528]
[1751820206244,2.3333,152.16,152.13,5.80314528]
[1751820206444,6.5709,152.15,152.13,5.80314528]
[1751820206948,2.3615,152.2,152.15,6.5708]
[1751820207149,2.3615,152.2,152.16,5.80314528]
[1751820207548,49.3,152.22,152.16,5.80314528]
[1751820207549,6.5695,152.19,152.16,12.37354528]
[1751820208145,6.5688,152.2,152.16,5.80314528]
[1751820208349,2.3615,152.24,152.18,5.80314528]
[1751820208742,2.3615,152.24,152.18,12.37234528]
[1751820209650,6.568,152.22,152.18,12.37234528]
[1751820210644,51.5747,152.26,152.2,5.80314528]
[1751820210846,49.3,152.26,152.15,49.3]
[1751820211147,6.5672,152.24,152.21,5.80314528]
[1751820213546,6.5674,152.23,152.21,5.80314528]
[1751820216352,6.5671,152.24,152.21,5.80314528]
[1751820218844,6.5671,152.24,152.2,10.43275954]
[1751820219654,6.5675,152.23,152.2,3.86405954]
[1751820220157,6.5673,152.24,152.19,6.5691]
[1751820220360,49.3,152.26,152.2,3.86405954]
[1751820221359,6.5671,152.24,152.2,10.43265954]
[1751820223356,6.5674,152.23,152.2,10.43265954]
[1751820225257,6.567,152.24,152.21,6.5682]
[1751820225459,8.50005954,152.29,152.22,3.86405954]
[1751820226161,8.50005954,152.29,152.23,6.5673]
[1751820226956,6.5664,152.26,152.22,10.43175954]
[1751820227359,8.50005954,152.29,152.21,10.43225954]
[1751820227656,3.86405954,152.27,152.11,592.6628]
[1751820227854,6.5664,152.26,152.22,6.5676]
[1751820228163,6.5664,152.26,152.23,3.86405954]
[1751820228557,6.5667,152.25,152.23,3.86405954]
[1751820229762,6.5662,152.26,152.23,3.86405954]
[1751820230161,8.50005954,152.29,152.23,3.86405954]
[1751820232566,6.5666,152.25,152.23,3.86405954]
[1751820234971,6.5666,152.25,152.21,6.5682]
[1751820235167,6.5666,152.25,152.22,3.86405954]
[1751820235672,4.636,152.29,152.22,3.86405954]
[1751820236171,2.2789,152.29,152.24,3.86405954]
[1751820237571,6.5657,152.27,152.24,10.43085954]
[1751820238885,6.5662,152.26,152.24,3.86405954]
[1751820239479,6.5662,152.26,152.23,6.5673]
[1751820239674,6.5662,152.26,152.23,10.43135954]
[1751820241882,3.86405954,152.26,152.18,48.58]
[1751820242083,3.86405954,152.26,152.19,3.86405954]
[1751820242280,3.86405954,152.22,152.15,3.86405954]
[1751820242476,3.86405954,152.2,152.14,48.58]
[1751820242882,6.5698,152.18,152.14,55.151]
[1751820243187,6.5698,152.18,152.1,567.16]
[1751820243188,3.86405954,152.2,152.12,3.86405954]
[1751820243380,2.3676,152.21,152.12,3.86405954]
[1751820243588,3.86405954,152.2,152.12,3.86405954]
[1751820243790,3.86405954,152.16,152.09,2.2779]
[1751820243983,3.86405954,152.16,152.08,10.43785954]
[1751820244280,3.86405954,152.14,152.08,3.86405954]
[1751820244487,10.43545954,152.14,152.09,6.5734]
[1751820244686,3.86405954,152.14,152.09,6.5734]
[1751820245983,2.2432,152.17,152.09,6.5734]
[1751820246179,3.86405954,152.13,152.07,3.86405954]
[1751820246384,3.86405954,152.13,152.06,48.58]
[1751820246786,6.5733,152.1,152.06,48.58]
[1751820246989,3.86405954,152.11,152.03,8.44925954]
[1751820247583,3.86405954,152.09,152.03,3.86405954]
[1751820248593,9.19061877,152.21,152.07,3.86405954]
[1751820248788,3.86405954,152.16,152.07,3.86405954]
[1751820249292,6.5725,152.12,152.07,3.86405954]
[1751820249686,6.5717,152.14,152.07,3.86405954]
[1751820249890,14.27157831,152.18,152.09,3.86405954]
[1751820250092,3.86405954,152.16,152.09,3.86405954]
[1751820250294,6.5716,152.14,152.09,3.86405954]
[1751820250787,6.5716,152.14,152.09,10.43735954]
[1751820250992,6.5716,152.14,152.09,3.86405954]
[1751820251291,6.5716,152.14,152.09,10.43725954]
[1751820251893,6.5718,152.13,152.09,3.86405954]
[1751820252884,6.5723,152.12,152.09,3.86405954]
[1751820253095,3.86405954,152.16,152.09,3.86405954]
[1751820253292,3.86405954,152.12,152.05,3.86405954]
[1751820253489,4.7151,152.11,152.04,6.5756]
[1751820253696,3.86405954,152.1,152.03,51.78405954]
[1751820254195,6.5742,152.08,152.03,58.35985954]
[1751820254391,3.86405954,152.1,152.03,58.35985954]
[1751820254598,3.86405954,152.1,152.03,51.78405954]
[1751820254792,3.86405954,152.08,151.99,3.86405954]
[1751820254990,3.86405954,152.08,152.01,3.86405954]
[1751820256487,47.94,152.09,152.01,3.86405954]
[1751820256691,3.86405954,152.08,152.01,3.86405954]
[1751820257501,6.5748,152.06,152.01,10.44065954]
[1751820257803,3.86405954,152.08,152.01,10.44065954]
[1751820258199,47.94,152.09,152.01,10.44065954]
[1751820258401,3.86405954,152.08,152.01,10.44065954]
[1751820258794,47.94,152.09,151.99,3.86405954]
[1751820259003,3.86405954,152.06,151.99,3.86405954]
[1751820259294,6.5762,152.03,151.99,10.44155954]
[1751820259695,6.5762,152.03,151.99,3.86405954]
[1751820261696,47.94,152.09,151.99,3.86405954]
[1751820261898,3.86405954,152.07,152.01,3.86405954]
[1751820263606,6.5757,152.04,152.01,3.86405954]
[1751820263999,3.86405954,152.07,151.99,6.5776]
[1751820264201,3.86405954,152.07,152.0,3.86405954]
[1751820264801,3.86405954,152.07,152.0,10.44115954]
[1751820265003,6.5758,152.04,152.0,10.44115954]
[1751820267404,3.86405954,152.07,152.0,10.44115954]
[1751820267701,3.86405954,152.07,152.0,3.86405954]
[1751820267899,2.3695,152.06,152.0,3.86405954]
[1751820268203,6.5767,152.02,151.98,10.44215954]
[1751820268503,6.5767,152.02,151.98,3.86405954]
[1751820269599,6.5767,152.02,151.99,6.5777]
[1751820270000,6.5767,152.02,151.98,10.44195954]
[1751820270203,3.86405954,152.03,151.97,47.94]
[1751820270795,6.5772,152.01,151.97,6.5786]
[1751820271007,3.86405954,152.03,151.97,6.5786]
[1751820271503,6.5772,152.01,151.98,6.5782]
[1751820271702,2.2646,152.04,151.97,3.86405954]
[1751820271904,2.2646,152.04,151.99,3.86405954]
[1751820273503,6.5766,152.02,151.99,10.44175954]
[1751820273705,2.2646,152.04,151.99,10.44175954]
[1751820274001,2.3695,152.06,151.96,47.96]
[1751820274204,6.5763,152.03,152.0,3.86405954]
[1751820275001,6.5765,152.02,152.0,3.86405954]
[1751820276603,6.5769,152.01,151.98,10.44195954]
[1751820279104,3.86405954,152.05,151.96,47.96]
[1751820279105,3.86405954,152.05,151.97,6.5783]
[1751820279305,3.86405954,152.05,151.97,10.44235954]
[1751820279705,2.3695,152.06,151.99,3.86405954]
[1751820280310,6.576,152.04,152.0,6.5773]
[1751820281210,6.5761,152.03,152.0,6.5773]
[1751820283409,6.5761,152.03,152.01,3.86405954]
[1751820284403,2.3735,152.08,152.01,10.44095954]
[1751820284609,2.3735,152.08,152.01,3.86405954]
[1751820284810,2.3735,152.08,152.03,3.86405954]
[1751820285909,3.86405954,152.07,151.96,47.96]
[1751820286213,3.86405954,152.07,152.0,3.86405954]
[1751820286609,6.5757,152.04,152.0,10.44125954]
[1751820287311,6.5757,152.04,152.01,6.5767]
[1751820287506,6.5763,152.03,151.96,47.96]
[1751820287705,6.5763,152.03,151.99,3.86405954]
[1751820287909,3.86405954,152.06,151.99,3.86405954]
[1751820288107,6.5767,152.02,151.96,47.96]
[1751820288315,7.83220036,152.05,151.97,10.44235954]
[1751820288509,6.5772,152.01,151.97,10.44235954]
[1751820288704,6.5772,152.01,151.97,3.86405954]
[1751820289612,6.5772,152.01,151.98,6.5779]
[1751820289914,3.86405954,152.04,151.97,10.44245954]
[1751820290313,6.5773,152.01,151.97,10.44245954]
[1751820291017,6.5775,152.0,151.97,10.44245954]
[1751820291517,6.5778,151.99,151.96,47.96]
[1751820291814,6.5778,151.99,151.96,51.82405954]
[1751820292015,6.5778,151.99,151.96,58.40295954]
[1751820292212,6.5783,151.98,151.96,51.82405954]
[1751820294119,6.5787,151.97,151.95,3.86405954]
[1751820295219,2.3608,152.03,151.95,3.86405954]
[1751820295418,2.3608,152.03,151.97,3.86405954]
[1751820296719,6.5776,152.0,151.97,3.86405954]
[1751820300419,2.3608,152.03,151.97,3.86405954]
[1751820300621,7.83503206,152.02,151.97,3.86405954]
[1751820300823,49.7832,152.04,151.97,3.86405954]
[1751820301022,7.83471424,152.03,151.97,3.86405954]
[1751820301322,6.5771,152.01,151.98,6.578]
[1751820301824,49.7832,152.04,151.97,3.86405954]
[1751820302019,7.83511117,152.03,151.97,3.86405954]
[1751820302220,53.64725954,152.04,151.97,3.86405954]
[1751820302420,53.64725954,152.04,151.97,10.44245954]
[1751820303829,6.5773,152.01,151.97,10.44245954]
[1751820304320,53.64725954,152.04,151.97,10.44245954]
[1751820305623,6.5772,152.01,151.97,10.44245954]
[1751820308020,6.5774,152.0,151.97,10.44245954]
[1751820311523,53.64725954,152.04,151.97,3.86405954]
[1751820312730,6.5772,152.01,151.97,10.44245954]
[1751820313726,6.5774,152.0,151.97,10.44245954]
[1751820314727,53.64725954,152.04,151.97,3.86405954]
[1751820314728,6.5778,151.99,151.97,3.86405954]
[1751820314921,53.64725954,152.04,151.96,6.579]
[1751820315127,53.64725954,152.04,151.97,3.86405954]
[1751820315128,7.83822281,152.03,151.97,3.86405954]
[1751820315327,53.64725954,152.04,151.97,3.86405954]
[1751820315520,7.83842952,152.03,151.97,3.86405954]
[1751820315720,53.64725954,152.04,151.97,3.86405954]
[1751820315916,7.83842952,152.03,151.97,3.86405954]
[1751820316118,53.64725954,152.04,151.97,3.86405954]
[1751820316328,7.83398916,152.03,151.97,3.86405954]
[1751820316525,53.64725954,152.04,151.97,3.86405954]
[1751820316726,6.5777,152.0,151.97,3.86405954]
[1751820316925,6.5777,152.0,151.97,10.44265954]
[1751820317223,6.5777,152.0,151.97,3.86405954]
[1751820317629,6.5778,151.99,151.97,3.86405954]
[1751820321132,3.86405954,152.02,151.95,3.86405954]
[1751820321329,8.46505954,152.02,151.94,18.36670701]
[1751820321524,8.46505954,152.02,151.93,3.86405954]
[1751820321525,4.601,152.02,151.95,3.86405954]
[1751820321725,9.22597921,152.07,152.0,7.75079644]
[1751820321925,7.83412806,152.06,152.04,6.5755]
[1751820322126,6.5742,152.08,152.04,6.5755]
[1751820322328,6.5742,152.08,152.01,51.5234]
[1751820322728,9.22597921,152.11,152.01,51.5234]
[1751820323125,15.79827921,152.12,152.08,3.87090209]
[1751820323326,9.22597921,152.11,152.08,3.87090209]
[1751820323528,2.2664,152.14,152.1,3.87090209]
[1751820323735,47.02,152.15,152.1,3.87090209]
[1751820325438,6.572,152.13,152.1,3.87090209]
[1751820325930,6.572,152.13,152.1,10.44390209]
[1751820326939,6.5714,152.14,152.1,10.44390209]
[1751820327739,6.572,152.13,152.11,3.87090209]
[1751820328838,6.572,152.13,152.1,6.573]
[1751820329243,6.572,152.13,152.11,3.87090209]
[1751820332450,3.87090209,152.15,152.08,3.87090209]
[1751820333047,3.87090209,152.13,152.05,47.0]
[1751820333246,2.2529,152.12,152.06,3.87090209]
[1751820334649,47.0,152.14,152.08,3.87090209]
[1751820337445,47.0,152.14,152.1,3.87090209]
[1751820337652,4.5875,152.16,152.1,3.87090209]
[1751820338454,8.45840209,152.16,152.09,3.87090209]
[1751820338649,8.45840209,152.16,152.07,3.87090209]
[1751820339060,12.46467823,152.16,152.07,10.44510209]
[1751820339261,3.87090209,152.15,152.07,3.87090209]
[1751820339857,3.87090209,152.15,152.09,3.87090209]
[1751820340659,6.5726,152.12,152.09,3.87090209]
[1751820342161,6.5726,152.11,152.09,3.87090209]
[1751820345168,8.45840209,152.16,152.07,3.87090209]
[1751820345169,6.5733,152.1,152.07,3.87090209]
[1751820346667,4.5875,152.16,152.09,3.87090209]
[1751820346864,4.5875,152.16,152.11,3.87090209]
[1751820347064,4.5875,152.16,152.09,3.87090209]
[1751820347264,3.87090209,152.15,152.09,3.87090209]
[1751820347467,6.5726,152.12,152.09,3.87090209]
[1751820347866,3.87090209,152.15,152.09,3.87090209]
[1751820348261,6.5728,152.11,152.09,3.87090209]
[1751820348564,3.87090209,152.15,152.09,3.87090209]
[1751820349068,6.5724,152.12,152.09,3.87090209]
[1751820349466,8.45840209,152.16,152.09,3.87090209]
[1751820349668,6.572,152.13,152.09,10.44400209]
[1751820350167,6.5723,152.12,152.09,10.44400209]
[1751820351067,6.5723,152.12,152.09,3.87090209]
[1751820353563,6.5727,152.11,152.09,3.87090209]
[1751820356778,4.5875,152.16,152.09,3.87090209]
[1751820356972,4.5875,152.16,152.12,3.87090209]
[1751820358374,6.5716,152.14,152.1,6.5728]
[1751820358575,6.5716,152.14,152.12,3.87090209]
[1751820360174,6.5717,152.13,152.12,3.87090209]
[1751820362083,6.5714,152.14,152.12,3.87090209]
[1751820362476,4.5875,152.16,152.12,3.87090209]
[1751820364174,6.5717,152.13,152.12,3.87090209]
[1751820364382,2.3346,152.16,152.12,3.87090209]
[1751820364675,6.5711,152.15,152.12,3.87090209]
[1751820365470,8.9052,152.16,152.12,10.44300209]
[1751820365671,49.0903,152.21,152.14,3.87090209]
[1751820365980,11.97870708,152.2,152.16,3.87090209]
[1751820366175,6.5699,152.18,152.16,3.87090209]
[1751820366380,4.08723225,152.17,152.16,3.87090209]
[1751820366579,6.5698,152.18,152.16,3.87090209]
[1751820366779,4.09278882,152.17,152.16,3.87090209]
[1751820367383,51.3574,152.21,152.16,3.87090209]
[1751820367577,12.01584628,152.2,152.16,3.87090209]
[1751820367783,6.5698,152.18,152.16,3.87090209]
[1751820368185,51.3574,152.21,152.16,3.87090209]
[1751820368384,7.90220795,152.2,152.14,6.5712]
[1751820368683,12.01623265,152.19,152.16,3.87090209]
[1751820368884,10.6839247,152.18,152.16,3.87090209]
[1751820369079,4.11294454,152.17,152.16,3.87090209]
[1751820369283,6.5716,152.14,152.11,3.87090209]
[1751820371078,6.5718,152.13,152.11,3.87090209]
[1751820374487,6.5722,152.12,152.11,3.87090209]
[1751820375492,6.5722,152.12,152.09,46.88]
[1751820375789,6.5722,152.12,152.11,3.87090209]
[1751820376190,6.5718,152.13,152.11,3.87090209]
[1751820378297,13.68337921,152.21,152.11,3.87090209]
[1751820378497,11.99335846,152.2,152.15,3.87090209]
[1751820378701,4.09027766,152.19,152.15,3.87090209]
[1751820378897,6.5703,152.17,152.15,3.87090209]
[1751820379601,6.5697,152.18,152.15,3.87090209]
[1751820379800,51.2974,152.21,152.17,3.87090209]
[1751820380001,4.08916731,152.2,152.17,3.87090209]
[1751820380192,4.08916731,152.19,152.17,3.87090209]
[1751820380396,51.2974,152.21,152.17,3.87090209]
[1751820380601,10.65737308,152.2,152.17,3.87090209]
[1751820380799,4.08857308,152.19,152.17,3.87090209]
[1751820381102,6.5688,152.2,152.17,3.87090209]
[1751820383104,6.5692,152.19,152.17,3.87090209]
[1751820385110,51.2974,152.21,152.11,4.522]
[1751820385409,15.93143319,152.2,152.13,3.87090209]
[1751820385710,3.87090209,152.18,152.11,3.87090209]
[1751820385907,3.87090209,152.16,152.08,3.87090209]
[1751820386109,6.5735,152.09,152.07,3.87090209]
[1751820386311,3.87090209,152.14,152.07,3.87090209]
[1751820386511,6.39266008,152.13,152.07,3.87090209]
[1751820386708,6.5735,152.09,152.07,3.87090209]
[1751820387905,6.5739,152.08,152.05,46.84]
[1751820388108,6.5739,152.08,152.05,50.71090209]
[1751820388309,3.87090209,152.12,152.05,50.71090209]
[1751820388506,4.12274529,152.11,152.05,50.71090209]
[1751820388713,6.5741,152.08,152.05,50.71090209]
[1751820388915,3.87090209,152.12,152.05,50.71090209]
[1751820389116,4.12262784,152.11,152.05,50.71090209]
[1751820389316,3.87090209,152.12,152.05,50.71090209]
[1751820389515,4.12214989,152.11,152.05,50.71090209]
[1751820389714,4.12214989,152.1,152.05,50.71090209]
[1751820389910,3.87090209,152.12,152.05,50.71090209]
[1751820390115,4.12226434,152.11,152.05,50.71090209]
[1751820390310,6.5752,152.05,152.01,53.4368]
[1751820390512,3.87090209,152.08,152.01,46.86]
[1751820390917,6.13600209,152.08,152.01,50.73090209]
[1751820391217,4.12313539,152.07,152.0,3.87090209]
[1751820391417,6.5769,152.02,152.0,3.87090209]
[1751820393016,6.5769,152.02,151.99,3.87090209]
[1751820394817,6.576,152.04,151.99,10.44850209]
[1751820395019,52.92900209,152.06,151.99,10.44850209]
[1751820395219,52.92900209,152.06,151.99,6.5776]
[1751820395519,52.92900209,152.06,151.99,3.87090209]
[1751820396315,52.92900209,152.06,151.97,614.4]
[1751820396621,52.92900209,152.06,151.97,46.86]
[1751820396622,3.87090209,152.04,151.97,46.86]
[1751820396823,3.87090209,152.02,151.93,2.1861]
[1751820397017,3.87090209,152.02,151.94,3.87090209]
[1751820397222,2.1597,152.01,151.94,3.87090209]
[1751820397625,2.1526,152.0,151.94,3.87090209]
[1751820398718,2.1526,152.0,151.93,53.4401]
[1751820398922,2.1526,152.0,151.94,3.87090209]
[1751820399930,6.5785,151.98,151.94,3.87090209]
[1751820400426,2.1526,152.0,151.96,3.87090209]
[1751820400623,2.3257,152.03,151.98,3.87090209]
[1751820401414,6.5769,152.02,151.98,10.44900209]
[1751820401815,6.5769,152.02,151.98,3.87090209]
[1751820403226,6.5769,152.02,151.98,10.44900209]
[1751820403822,8.9018,152.03,151.99,6.5777]
[1751820404029,4.4443,152.05,152.0,3.87090209]
[1751820404228,4.4443,152.05,152.01,3.87090209]
[1751820404528,6.5764,152.03,152.01,3.87090209]
[1751820408833,6.5765,152.02,152.01,3.87090209]
[1751820409036,2.1595,152.05,152.01,3.87090209]
[1751820409434,6.5764,152.03,152.01,3.87090209]
[1751820409934,6.5765,152.02,152.01,3.87090209]
[1751820411036,6.5772,152.01,151.99,3.87090209]
[1751820412123,6.5774,152.0,151.98,46.82]
[1751820412325,6.5774,152.0,151.98,50.69090209]
[1751820412930,6.5774,152.0,151.98,3.87090209]
[1751820413131,6.5774,152.0,151.96,6.579]
[1751820413331,6.5774,152.0,151.98,3.87090209]
[1751820413542,6.5778,151.99,151.97,3.87090209]
[1751820414037,6.5776,152.0,151.97,3.87090209]
[1751820415039,6.5779,151.99,151.96,6.5788]
[1751820415340,6.5779,151.99,151.97,3.87090209]
[1751820416341,6.5776,152.0,151.97,3.87090209]
[1751820417336,2.1525,152.03,151.97,3.87090209]
[1751820417934,6.5781,151.99,151.96,3.87090209]
[1751820419235,6.5782,151.98,151.96,3.87090209]
[1751820419440,2.1525,152.03,151.96,3.87090209]
[1751820421136,6.5781,151.99,151.96,3.87090209]
[1751820422343,6.5783,151.98,151.94,53.3998]
[1751820422641,3.87090209,152.0,151.94,46.82]
[1751820422943,6.5794,151.96,151.93,3.87090209]
[1751820423143,4.4473,151.99,151.91,6.581]
[1751820423346,4.4473,151.99,151.92,3.87090209]
[1751820423742,3.87090209,151.98,151.92,3.87090209]
[1751820423944,3.87090209,151.98,151.9,58.94787135]
[1751820424149,3.87090209,151.98,151.9,55.07696926]
[1751820424345,3.87090209,151.98,151.91,3.87090209]
[1751820424542,2.3036,151.97,151.91,3.87090209]
[1751820424938,3.87090209,151.96,151.9,1.67556926]
[1751820427339,6.17450209,151.97,151.9,1.67556926]
[1751820427737,6.5806,151.93,151.9,1.67556926]
[1751820429237,6.5809,151.92,151.9,1.67556926]
[1751820429439,6.17450209,151.97,151.9,1.67556926]
[1751820430244,6.5811,151.92,151.9,1.67556926]
[1751820430444,6.17450209,151.97,151.9,1.67556926]
[1751820430843,6.5812,151.92,151.9,1.67556926]
[1751820431238,3.87090209,151.95,151.9,1.67556926]
[1751820431844,6.5812,151.91,151.9,1.67556926]
[1751820432048,46.76,151.96,151.9,1.67556926]
[1751820432248,46.76,151.96,151.9,5.54647135]
[1751820432649,6.5808,151.93,151.9,5.54647135]
[1751820433248,46.76,151.96,151.9,5.54647135]
[1751820434154,6.5812,151.91,151.9,1.67556926]
[1751820434349,50.63090209,151.96,151.9,5.54647135]
[1751820434944,46.76,151.96,151.9,5.54647135]
[1751820435646,6.5807,151.93,151.9,5.54647135]
[1751820437351,6.5809,151.92,151.9,5.54647135]
[1751820437851,46.76,151.96,151.9,5.54647135]
[1751820438553,50.63090209,151.96,151.9,1.67556926]
[1751820438744,6.5812,151.91,151.9,1.67556926]
[1751820440152,6.5812,151.91,151.86,3.87090209]
[1751820440153,6.5827,151.88,151.86,3.87090209]
[1751820440353,4.3539,151.93,151.86,3.87090209]
[1751820441249,3.87090209,151.9,151.83,3.87090209]
[1751820441446,4.3539,151.93,151.83,3.87090209]
[1751820441656,3.87090209,151.91,151.84,6.5842]
[1751820441846,6.583,151.87,151.84,3.87090209]
[1751820443652,6.5835,151.86,151.84,3.87090209]
[1751820443954,3.87090209,151.91,151.84,10.45500209]
[1751820444153,6.5832,151.87,151.84,10.45500209]
[1751820444347,6.5832,151.87,151.84,3.87090209]
[1751820444547,6.5832,151.87,151.84,10.45510209]
[1751820445052,6.5827,151.88,151.85,6.5838]
[1751820445253,8.22480209,151.93,151.86,3.87090209]
[1751820445747,4.3539,151.93,151.88,3.87090209]
[1751820446048,46.76,151.96,151.9,3.87090209]
[1751820446245,6.5796,151.95,151.92,3.87090209]
[1751820446451,46.76,151.96,151.92,3.87090209]
[1751820446951,6.5796,151.95,151.92,3.87090209]
[1751820447150,46.76,151.96,151.92,3.87090209]
[1751820448051,6.5803,151.94,151.92,3.87090209]
[1751820448250,46.76,151.96,151.92,3.87090209]
[1751820448450,46.76,151.96,151.88,2.1985]
[1751820448651,46.76,151.96,151.92,3.87090209]
[1751820450356,6.5803,151.94,151.92,3.87090209]
[1751820452456,6.5804,151.93,151.92,3.87090209]
[1751820453259,6.5801,151.94,151.92,3.87090209]
[1751820455254,6.5804,151.93,151.92,3.87090209]
[1751820455857,6.5812,151.92,151.9,3.87090209]
[1751820457559,6.5812,151.92,151.88,8.7808]
[1751820457560,3.87090209,151.97,151.89,3.87090209]
[1751820458263,6.5815,151.91,151.89,3.87090209]
[1751820458860,3.87090209,151.97,151.89,3.87090209]
[1751820459059,3.87090209,151.97,151.91,3.87090209]
[1751820459461,6.5804,151.93,151.91,3.87090209]
[1751820460359,6.5808,151.92,151.89,3.87090209]
[1751820460556,3.87090209,151.95,151.89,3.87090209]
[1751820460957,6.5816,151.91,151.89,3.87090209]
[1751820462067,3.87090209,151.95,151.88,3.87090209]
[1751820462565,6.5819,151.9,151.88,3.87090209]
[1751820465668,6.5814,151.91,151.88,3.87090209]
[1751820465862,46.7,151.94,151.9,3.87090209]
[1751820466365,6.5811,151.92,151.9,3.87090209]
[1751820467170,6.5812,151.91,151.9,3.87090209]
[1751820468075,6.5819,151.9,151.88,3.87090209]